Cogmind - Beta 15 @@@ ROGUE MODE // 2025.08.29 @ 10:07:36 Player: Reflectatory Result: Destroyed by G-47 Trooper with Particle Gun Performance ------------- Evolutions (2) 1000 Regions Visited (4) 800 Robots Destroyed (38) 190 Value Destroyed (761) 761 Prototype IDs (1) 20 Alien Tech Used (0) 0 Bonus (0) 0 TOTAL SCORE: 2771 Bonus ------- None Cogmind --------- Core Integrity 0/550 Matter 224/300 Energy 99/100 System Corruption 0% Temperature Cool (54) Movement Core (50) Location -8/Materials Parts ------- > --- POWER (2) -------- (None) > --- PROPULSION (2) --- (None) > --- UTILITY (5) ------ (None) > --- WEAPON (2) ------- (None) > --- INVENTORY (5) ---- (None) Peak State ------------ > --- POWER ------------ Light Deuterium Engine > --- PROPULSION ------- Carbon-fiber Leg Carbon-fiber Leg > --- UTILITY ---------- Structural Scanner Improved Targeting Computer Improved Targeting Computer Hacking Suite > --- WEAPON ----------- Advanced EMP Blaster Advanced EMP Blaster > --- INVENTORY -------- Light Deuterium Engine Aluminum Leg Carbon-fiber Leg Carbon-fiber Leg Maul [Rating: 26] Favorites ----------- Power Ion Engine Engine Ion Engine Propulsion Carbon-fiber Leg Treads Light Treads Leg Carbon-fiber Leg Utility Improved Targeting Computer Device Structural Scanner Processor Improved Targeting Computer Hackware Hacking Suite Weapon Small Laser Energy Gun Small Laser Ballistic Gun Light Assault Rifle Launcher Advanced EMP Blaster Impact Weapon Maul Build | -11 -10 -9 -9 -8 ------- Run | Yrd Mat Mat Min Mat Slots Evolved 4 | . . 2 . 2 Power 1 | . . . . 1 Propulsion . | . . . . . Utility 3 | . . 2 . 1 Weapon . | . . . . . Parts Attached 23 | 8 2 8 3 2 Power 3 | 1 . 1 . 1 Engine 3 | 1 . 1 . 1 Core . | . . . . . Reactor . | . . . . . Propulsion 8 | 4 . 2 2 . Treads 2 | 2 . . . . Leg 6 | 2 . 2 2 . Wheel . | . . . . . Hover . | . . . . . Flight . | . . . . . Utility 5 | 1 2 2 . . Device 2 | 1 . 1 . . Storage . | . . . . . Processor 2 | . 2 . . . Hackware 1 | . . 1 . . Protection . | . . . . . Artifact . | . . . . . Weapon 7 | 2 . 3 1 1 Energy Gun 2 | 2 . . . . Energy Cannon . | . . . . . Ballistic Gun 1 | . . 1 . . Ballistic Cannon . | . . . . . Launcher 3 | . . 2 1 . Special Weapon . | . . . . . Impact Weapon 1 | . . . . 1 Slashing Weapon . | . . . . . Piercing Weapon . | . . . . . Special Melee Weapon . | . . . . . Unidentified Prototypes 1 | . . 1 . . Parts Lost 17 | . . 4 1 12 Power 3 | . . 1 . 2 Propulsion 5 | . . 1 . 4 Utility 4 | . . 1 . 3 Weapon 5 | . . 1 1 3 Highest Loss Streak 12 | . . 3 1 12 To Critical Strikes . | . . . . . Average Backups 4 | 3 4 4 4 2 Power . | . 1 1 1 . Propulsion 1 | 1 2 2 2 1 Utility . | . . . . . Weapon 1 | . 1 1 1 . Tool/Special . | . . . . . Unused Backups 2 | . 1 1 . . Power 1 | . . 1 . . Propulsion . | . . . . . Utility 1 | . 1 . . . Weapon . | . . . . . Tool/Special . | . . . . . Average Slot Usage (%) 84 | . 93 89 85 60 Engine 10 | . 13 9 11 11 Leg 20 | . 22 20 22 13 Device 7 | . 3 7 11 8 Processor 16 | . 21 21 11 8 Hackware 7 | . . 8 11 6 Energy Gun 9 | . 26 11 . . Ballistic Gun 1 | . . 2 . . Launcher 9 | . . 7 19 11 Peak Build Rating 26 | 6 9 26 24 24 Average Rating 14 | 5 8 16 21 16 On Entrance 12 | . 6 9 24 21 Naked Turns 6 | . . . . 6 Heaviest Build 18 | 8 8 18 18 18 Greatest Support 40 | 40 40 30 30 30 Greatest Overweight (x) 1 | 1 . . . 1 Average Overweight (x) . | . . . . . Largest Inventory Capacity 5 | 5 5 5 5 5 Average Capacity 5 | 5 5 5 5 5 Most Carried 5 | 5 5 5 5 3 Average Carried 4 | 3 4 4 4 2 Final Capacity 5 | 5 5 5 5 5 Final Carried 5 | 5 5 5 4 . Class Distribution -------------------- 100% | Mutant Dominant Class ---------------- Mutant | -10/Materials Mutant | -9/Materials Mutant | -9/Mines Mutant | -8/Materials Resources | -11 -10 -9 -9 -8 ----------- Run | Yrd Mat Mat Min Mat Matter Collected 647 | 249 . 251 100 47 Remotely 84 | 84 . . . . Salvage Created 985 | 65 . 531 163 226 Parts 52 | 2 . 36 2 12 Haulers Intercepted 2 | . . 1 . 1 Recyclers Shooed 1 | . . . . 1 Parts Field Recycled . | . . . . . Retrieved Matter . | . . . . . Parts Self-Destructed . | . . . . . Prevented . | . . . . . Kills | -11 -10 -9 -9 -8 ------- Run | Yrd Mat Mat Min Mat Combat Hostiles Destroyed 29 | . . 15 8 6 Melee 1 | . . . . 1 Guns 5 | . . 5 . . AOE 23 | . . 10 8 5 Classes Destroyed 11 | 1 . 7 2 1 Worker 3 | . . 1 1 1 Builder 2 | . . . . 2 Hauler 2 | . . 1 . 1 Recycler 2 | 1 . . . 1 Mechanic 1 | . . 1 . . Operator 1 | . . 1 . . Watcher 4 | . . 4 . . Swarmer 13 | . . 13 . . Grunt 6 | . . . 2 4 Sentry 4 | . . 2 . 2 Assembled 6 | . . . 6 . Best Kill Streak 13 | 1 . 13 4 10 Combat Bots Only 7 | . . 7 4 6 Max Kills in Single Turn 4 | 1 . 4 2 2 Gunslinging . | . . . . . Exploded 3 | . . 3 2 2 Melee 1 | . . . . 1 Uniques/NPCs Destroyed . | . . . . . Combat | -11 -10 -9 -9 -8 -------- Run | Yrd Mat Mat Min Mat Hostile Shots Fired 203 | . 13 69 15 106 Missed 68 | . 6 23 10 29 Hits 135 | . 7 46 5 77 Projectile 135 | . 7 46 5 77 Critical Strikes 7 | . . 3 . 4 Damage Taken 1993 | . 91 636 119 1147 Core 702 | . 53 66 22 561 Absorbed by Shields . | . . . . . Core Remaining (%) 85 | 100 78 . 78 . Volleys Fired 58 | 5 . 29 10 14 Largest 2 | 1 . 2 2 2 Hottest 80 | 40 . 80 66 66 Shots Fired 84 | 5 . 52 11 16 Gun 43 | 5 . 38 . . Cannon . | . . . . . Launcher 41 | . . 14 11 16 Special . | . . . . . Kinetic 10 | . . 10 . . Thermal 33 | 5 . 28 . . Explosive 15 | . . . 1 14 Electromagnetic 26 | . . 14 10 2 Robot Hit Streak 14 | 5 . 14 4 12 Robot Miss Streak 3 | . . 3 3 3 Penetration Max . | . . . . . Secondary Targets 2 | . . 2 . . Max Gunslinging Chain 1 | . . 1 . . Shots Hit Robots 64 | 5 . 38 4 17 Core Hits 67 | 2 . 29 12 24 Critical Kills 1 | . . . . 1 Critical Parts Destroyed . | . . . . . Critical Strikes 1 | . . . . 1 Smash 1 | . . . . 1 Melee Attacks 8 | . . . . 8 Impact 8 | . . . . 8 Slashing . | . . . . . Piercing . | . . . . . Sneak Attacks 1 | . . . . 1 Combat Hostiles . | . . . . . Follow-up Attacks . | . . . . . Damage Inflicted 3412 | 58 3 1394 461 1496 Guns 398 | 58 . 340 . . Cannons . | . . . . . Explosions 2748 | . . 1054 461 1233 Melee 247 | . . . . 247 Ramming 19 | . 3 . . 16 Kinetic 70 | . . 70 . . Thermal 597 | 58 . 416 123 . Explosive 1207 | . . . 76 1131 Electromagnetic 1272 | . . 908 262 102 Impact 247 | . . . . 247 Slashing . | . . . . . Piercing . | . . . . . Highest Corruption 3 | . . 3 3 . Average Corruption 2 | . . 2 3 . Corruption Purged . | . . . . . Corruption Blocked . | . . . . . Effects 6 | . . 3 3 . Matter Fused 1 | . . 1 . . Heat Flow Errors 1 | . . . 1 . Energy Discharges 2 | . . 1 1 . Parts Fused 1 | . . 1 . . Data Loss (minor) 1 | . . . 1 . Overload Shots . | . . . . . Overflow Damage 129 | . . 55 5 69 Projectiles . | . . . . . Explosions 65 | . . 55 5 5 Melee 64 | . . . . 64 Knockbacks 2 | . . . . 2 Impact 2 | . . . . 2 Kinetic . | . . . . . Secondary . | . . . . . Self-Inflicted Damage 174 | . . 116 51 7 Shots 10 | . . 7 3 . Rammed 3 | . . . . 3 Targets Rammed 5 | . 1 1 . 3 Kicked 2 | . 1 1 . . Crushed . | . . . . . Highest Temperature 122 | . . 122 84 45 Average Temperature 35 | . . 40 32 20 Received Heat Transfer 852 | . 51 153 36 612 Siege Activations . | . . . . . Martial Activations . | . . . . . Shielding Activations . | . . . . . Robots Disrupted . | . . . . . Combat Hostiles . | . . . . . Robots Corrupted . | . . . . . Combat Hostiles . | . . . . . Parts Fried 4 | . . 4 . . Impact Corruptions 2 | . . . . 2 Robots Melted . | . . . . . Combat Hostiles . | . . . . . Parts Melted . | . . . . . Heat Transferred 1175 | 125 . 850 200 . Parts Sabotaged . | . . . . . Parts Stolen . | . . . . . Parts Stripped . | . . . . . Power Chain Reactions 6 | . . 4 2 . Alert | -11 -10 -9 -9 -8 ------- Run | Yrd Mat Mat Min Mat Maximum Alert Level 1 | . . 1 . . Low Security (%) 95 | 100 100 85 100 100 Level 1 4 | . . 14 . . Level 2 . | . . . . . Level 3 . | . . . . . Level 4 . | . . . . . Level 5 . | . . . . . High Security . | . . . . . Max Security . | . . . . . Peak Influence 282 | 5 12 282 151 161 Initial 106 | . . . 106 41 Average 53 | . 1 64 109 72 Influence Increases 862 | 5 17 453 132 255 Destroy 0b10 Robot/C 460 | . . 300 40 120 Destroy 0b10 Robot/NC 75 | 5 . 40 5 25 Destroy Leader 112 | . . 70 10 32 Successful Hack 37 | . 17 10 . 10 Disable Machine 90 | . . 15 45 30 Destroy Structure 73 | . . 18 32 23 Lose Combat Pursuer 15 | . . . . 15 Influence Decreases 766 | 5 17 179 298 267 Entered New Map 235 | . . . 168 67 Time Decay 361 | 5 17 139 120 80 Lost Part 170 | . . 40 10 120 Squads Dispatched 4 | . 1 . . 3 Investigation 1 | . . . . 1 Extermination . | . . . . . Reinforcement 3 | . 1 . . 2 Assault . | . . . . . Garrison . | . . . . . Intercept . | . . . . . Searches Triggered . | . . . . . Construction Impeded 1 | . . . . 1 Haulers Reinforced . | . . . . . Active Scanning Responses . | . . . . . Cargo Convoy Interrupts . | . . . . . Stealth | -11 -10 -9 -9 -8 --------- Run | Yrd Mat Mat Min Mat Distress Signals 6 | . 1 3 . 2 Communications Jammed . | . . . . . Distress Signals . | . . . . . Times Spotted 56 | . 7 22 9 18 Peak Tracking Total 11 | . 6 6 4 11 Tactical Retreats 2 | . . . 1 1 Traps | -11 -10 -9 -9 -8 ------- Run | Yrd Mat Mat Min Mat Traps Triggered 3 | . 2 . . 1 Indirectly 1 | . . . . 1 Trap Hack Attempts . | . . . . . Triggered . | . . . . . Disarmed . | . . . . . Reprogrammed . | . . . . . Reused . | . . . . . Traps Extracted . | . . . . . Installed . | . . . . . Triggered . | . . . . . Machines | -11 -10 -9 -9 -8 ---------- Run | Yrd Mat Mat Min Mat Machines Disabled 6 | . . 1 3 2 Max in Single Turn 2 | . . 1 2 1 Machines Repaired . | . . . . . Machines Dismantled . | . . . . . Machines Sabotaged . | . . . . . Overloaded Fab Kills . | . . . . . Hacking | -11 -10 -9 -9 -8 --------- Run | Yrd Mat Mat Min Mat Machines Accessed 9 | . 2 6 . 1 Terminals 7 | . 2 5 . . Fabricators . | . . . . . Repair Stations . | . . . . . Recycling Units 2 | . . 1 . 1 Scanalyzers . | . . . . . Garrison Access . | . . . . . Total Hacks 19 | . 4 14 . 1 Successful 10 | . 3 6 . 1 Failed 9 | . 1 8 . . Catastrophic 1 | . 1 . . . Database Lockouts . | . . . . . Manual 19 | . 4 14 . 1 Terminals 17 | . 4 13 . . Fabricators . | . . . . . Repair Stations . | . . . . . Recycling Units 2 | . . 1 . 1 Scanalyzers . | . . . . . Garrison Access . | . . . . . Terminal Hacks 2 | . 1 1 . . Level Access Points 1 | . 1 . . . Terminal Index 1 | . . 1 . . Fabricator Hacks . | . . . . . Repair Station Hacks . | . . . . . Recycling Unit Hacks . | . . . . . Scanalyzer . | . . . . . Garrison Access Hacks . | . . . . . Unauthorized Hacks 8 | . 2 5 . 1 Terminals 6 | . 2 4 . . Botnet 6 | . 2 4 . . Fabricators . | . . . . . Repair Stations . | . . . . . Recycling Units 2 | . . 1 . 1 Monitor 1 | . . 1 . . Reject 1 | . . . . 1 Scanalyzers . | . . . . . Garrison Access . | . . . . . Data Cores Recovered 1 | . . 1 . . Used . | . . . . . Hacking Detections 8 | . 2 5 . 1 Full Trace Events . | . . . . . Feedback Events . | . . . . . Feedback Blocked . | . . . . . Robot Schematics Acquired . | . . . . . Robots Built . | . . . . . Authchips . | . . . . . Time . | . . . . . Total Robot Build Rating . | . . . . . Part Schematics Acquired . | . . . . . Parts Built . | . . . . . Authchips . | . . . . . Time . | . . . . . Total Part Build Rating . | . . . . . Parts Repaired . | . . . . . Time . | . . . . . Parts Recycled . | . . . . . Recycled Matter . | . . . . . Retrieved Matter . | . . . . . Retrieved Components . | . . . . . Parts Scanalyzed . | . . . . . Part Schematics Acquired . | . . . . . Parts Damaged . | . . . . . Bothacking | -11 -10 -9 -9 -8 ------------ Run | Yrd Mat Mat Min Mat Used RIF Installer . | . . . . . Robots Hacked . | . . . . . Non-combat . | . . . . . Combat . | . . . . . Robot Hacks Applied . | . . . . . Relay Couplers Released . | . . . . . Fabnet Peak Effective % . | . . . . . Robots Rewired . | . . . . . Allies Hacked . | . . . . . Hacks Repelled . | . . . . . Allies | -11 -10 -9 -9 -8 -------- Run | Yrd Mat Mat Min Mat Total Allies . | . . . . . Largest Group . | . . . . . Highest-Rated Group . | . . . . . Highest-Rated Ally . | . . . . . Total Orders . | . . . . . Ally Attacks . | . . . . . Total Damage . | . . . . . Kills . | . . . . . Allies Corrupted . | . . . . . Allies Melted . | . . . . . Intel | -11 -10 -9 -9 -8 ------- Run | Yrd Mat Mat Min Mat Active Infowar (turns) 695 | . . 294 242 159 Structural 695 | . . 294 242 159 Robot Analysis Total . | . . . . . Derelict Logs Recovered . | . . . . . Drone Launches . | . . . . . Drone Recoveries . | . . . . . Exploration | -11 -10 -9 -9 -8 ------------- Run | Yrd Mat Mat Min Mat Turns Passed 1272 | 238 182 445 242 165 Spaces Moved 764 | 80 133 278 181 92 Core 20 | 10 . . . 10 Treads 73 | 57 16 . . . Legs 671 | 13 117 278 181 82 Wheels . | . . . . . Hover . | . . . . . Flight . | . . . . . Fastest Speed 50 | 50 120 120 120 50 Average Speed 122 | 141 124 120 120 112 Slowest Speed 160 | 160 160 120 120 120 Overloaded Moves . | . . . . . Propulsion Burnouts . | . . . . . Robots Hopped . | . . . . . Potential Cave-ins . | . . . . . Cave-ins Triggered . | . . . . . Exploration Rate (%) 25 | 7 35 26 43 18 Regions Visited 4 Branch Regions 1 Pre-discovered Areas . | . . . . . Known Exits Taken 1 | . 1 . . . Unknown Exits Taken 3 | 1 . 1 1 . Scrap Searched 1 | . . . 1 . Spaces Dug . | . . . . . Terrain Destroyed 83 | . . 14 36 33 Melee . | . . . . . Projectile . | . . . . . AOE 83 | . . 14 36 33 Terrain Rammed . | . . . . . Walls Destroyed . | . . . . . Machines Disabled . | . . . . . Actions | -11 -10 -9 -9 -8 --------- Run | Yrd Mat Mat Min Mat Total 995 | 196 146 339 193 121 Wait 115 | 99 . 16 . . Move 760 | 79 132 277 180 92 Hop . | . . . . . Pick Up 11 | 5 2 4 . . Fast Attach 17 | 6 6 4 1 . Attach 6 | . 1 1 . 4 Detach . | . . . . . Swap 9 | 2 2 3 2 . Drop 6 | . 2 4 . . Fire 58 | 5 . 29 10 14 Melee 8 | . . . . 8 Ram 3 | . . . . 3 Kick 2 | . 1 1 . . Crush . | . . . . . Escape Stasis . | . . . . . Rewire . | . . . . . Trap . | . . . . . Miscellaneous . | . . . . . Route ------- -11/Scrapyard -10/Materials (discovered 4 exits: *Mat x3 / [*Min]) -9/Materials (discovered 2 exits: [*Min] / [*Sto]) -9/Mines -8/Materials History --------- Turn | Location | Event 11 | -11/Scrapyard | Discovered new exit (range 15) 239 | -11/Scrapyard | Entered Materials 296 | -10/Materials | Discovered new exit (range 14) 306 | -10/Materials | Build established: Mutant 325 | -10/Materials | Identified exit to Materials 421 | -10/Materials | Entered another Materials area 421 | -9/Materials | Evolved 2 slots: Utility x2 676 | -9/Materials | Lost 3 parts (1p1n1w) 719 | -9/Materials | Discovered new exit (range 6) 763 | -9/Materials | Discovered new exit (range 4) 822 | -9/Materials | Destroyed 7 combat bots 866 | -9/Materials | Entered Mines 983 | -9/Mines | Assembled infested the area 1092 | -9/Mines | Discovered new exit (range 15) 1108 | -9/Mines | Entered Materials 1108 | -8/Materials | Evolved 2 slots: Power x1, Utility x1 1268 | -8/Materials | Core integrity fell below 50% 1272 | -8/Materials | Core integrity fell below 20% 1273 | -8/Materials | Destroyed by G-47 Trooper with Particle Gun Last Messages --------------- Acquired 20 matter. W-25 Informer sends out distress signal. U-05 Engineer lays Concrete. G-47 Trooper knocked back. ALERT: Hostiles spotted, dispatching reinforcements to Terminal M007. U-05 Engineer lays Concrete. Maul destroyed. Structural Scanner destroyed. U-05 Engineer lays Concrete. Slammed into S-10 Pest. Destabilizing: Core damaged (-11). Slammed into G-47 Trooper. U-05 Engineer lays Concrete. Critical hit (Burn: +37). Slammed into G-47 Trooper. U-05 Engineer lays Concrete. Critical hit (Burn: +37). U-05 Engineer lays Concrete. Critical hit (Burn: +37). Map ----- +----------------------------------------------------+ | ??????????????????????????????????????? # ?????? | | ???????????????????????????#### ?? # ###### | | ??????????????????????################### ###### | | ?????????????????????######## #### | | ????????????????????##### # """ + | | ?????????????????###### """"" #### | | ?????????????????###### """"" #######/### | | ??????????? """"" ## # | | ?????????????????##### """ ## """ # | | ?????????????????##### ## """"" # | | ?????????????????????## % ## """"" # | | ????????????????####### # ## """"" # | | ????????????????#########u ###+####### """ # | | ????????????????## uu ### ####### # | | ????????????????## r ### + # | | ????????????????## ########### # | | ????????????????## ###############+#### | | ????????????????## """ ###??????###### #### | | ????????????????## "" "##??????????## #### | | ??????????????#### " "##??????????## #### | | ??????????????#### "##??????????## #### | | ??????????????##"" ! T##??????????##+#### | | ??????????????##" "##?????????? # | | ????????????#### = "##?????## """ """ # | | ????????????##### "##????### """ """ # ? | | ????????????##]] = @ ###????## """ """ + ? | | ????????????##]] = % ###????### # ? | | ????????????##!! =u % ##?????### ]] ##? | | ????????????##!! = ##??????## ]] ##? | | ????????????##[[ != ##??????## ##? | | ????????????##[[ ##??????########/????? | | ????????????###### s gg ##???????####### ????? | | ????????????###### gg # ???????????????????? | | ????????????????## # ???????????????????? | | ?????????????? ss """ # ???????????????????? | | ??????????# ggt + ???????????????????? | | ??????????# # ???????????????????? | | ??????????# ###+####### # ???????????????????? | | ??????????# ?# ##### ##???????????????????? | | ??????????# ??? ??????? ##???????????????????? | | ??????????#???? ??????? ???????????????????? | | ??????????????# ??????? ??????????????????? | | ??????????????# ""???????? ?##??????????????????? | | ??????????????# ""???????????????????????????????? | | ??????????????# ""???????????????????????????????? | | ??????????????# ?????????????????????????????????? | | ??????????????#??????????????????????????????????? | | ?????????????????????????????????????????????????? | | ?????????????????????????????????????????????????? | | ?????????????????????????????????????????????????? | +----------------------------------------------------+ Best States ------------- Heat Dissipation 31 Energy Generation 23 Energy Capacity 250 Matter Stores 300 Matter Capacity 300 Sight Range 16 Terrain Scan Density 10 Evasion (%) 55 Targeting Accuracy 12 Recoil Reduction 2 Offensive Hacking 10 Item Schematics ----------------- None Robot Schematics ------------------ None Fabricated ------------ Nothing Repaired ---------- Nothing Alien Tech Used ----------------- None Achievements -------------- None Challenges ------------ None Game ------ Seed TeslaSystemLauncher Manual? 0 Play Time 00:20:12 Cumulative 20.5 hours Start 2025.08.27 @ 17:43:40 End 2025.08.29 @ 10:07:36 Sessions 7 Manual Loads 0 Difficulty Rogue Special Mode None Game No. 22 Rogue 22 Adventurer 0 Explorer 0 Win Type - Total 0 Types 0/0/0/0/0/0/0/0/0/0 Lore% 31 Gallery% 27 Achievement% 30 Wizard Run 0 Options --------- Layout 1 ASCII 0 Keyboard 0 Movement Mouse Keybinds 0 Fullscreen 1 Font 32/SmallcapsGlow Map View 50x35 Zoom Use 0% Tactical HUD 0 Map Filters NONE Filters NONE Steam 1 RUN: 576e4a73-ef9b-4fdb-9eb4-ccc7a16689ad